[Event "Early-Titled-Tuesday-Blitz-October-10-2023"]
[Site "Chess.com"]
[Date "2023.10.10"]
[Round "3"]
[White "Cayse"]
[Black "Battever"]
[Result "1-0"]
[WhiteElo "2833"]
[BlackElo "2513"]
[TimeControl "180+1"]
[EndTime "8:27:23 PDT"]
[Termination "Cayse won on time"]

1. e4 {[%clk 0:03:00.9]} 1... c5 {[%clk 0:02:59.2]} 2. Nf3 {[%clk 0:03:00.4]}
2... e6 {[%clk 0:02:59.8]} 3. d4 {[%clk 0:03:00.1]} 3... cxd4 {[%clk 0:03:00.7]}
4. Nxd4 {[%clk 0:03:00.4]} 4... a6 {[%clk 0:03:01.4]} 5. Be2 {[%clk 0:03:00]}
5... Nf6 {[%clk 0:02:58.3]} 6. Nc3 {[%clk 0:02:59.4]} 6... Bb4 {[%clk
0:02:57.2]} 7. e5 {[%clk 0:02:42.4]} 7... Ne4 {[%clk 0:02:46.6]} 8. O-O {[%clk
0:02:41.7]} 8... Nxc3 {[%clk 0:02:42]} 9. bxc3 {[%clk 0:02:42.6]} 9... Bxc3
{[%clk 0:02:42.7]} 10. Ba3 {[%clk 0:02:34.3]} 10... Bxa1 {[%clk 0:02:12.8]} 11.
Qxa1 {[%clk 0:02:33.5]} 11... f5 {[%clk 0:02:00.1]} 12. Rd1 {[%clk 0:02:14.6]}
12... Nc6 {[%clk 0:01:45]} 13. Nxe6 {[%clk 0:02:02.9]} 13... dxe6 {[%clk
0:01:17.3]} 14. Rxd8+ {[%clk 0:02:01.5]} 14... Nxd8 {[%clk 0:01:16.7]} 15. Qd4
{[%clk 0:01:54.3]} 15... Kf7 {[%clk 0:00:54.1]} 16. Qd6 {[%clk 0:01:51.7]} 16...
Re8 {[%clk 0:00:49.7]} 17. Bh5+ {[%clk 0:01:30.9]} 17... g6 {[%clk 0:00:48.1]}
18. Bf3 {[%clk 0:01:31.3]} 18... a5 {[%clk 0:00:48.7]} 19. Qc7+ {[%clk
0:01:21.4]} 19... Kg8 {[%clk 0:00:45.9]} 20. Be7 {[%clk 0:01:21.1]} 20... Nf7
{[%clk 0:00:37.4]} 21. Bf6 {[%clk 0:01:20.7]} 21... a4 {[%clk 0:00:22.7]} 22. a3
{[%clk 0:01:13.1]} 22... Ra6 {[%clk 0:00:11.9]} 23. c4 {[%clk 0:01:10.5]} 23...
Rf8 {[%clk 0:00:02.4]} 24. h4 {[%clk 0:01:09.6]} 24... Re8 {[%clk 0:00:01.9]}
25. h5 {[%clk 0:00:57.1]} 25... Ra8 {[%clk 0:00:02.3]} 26. g3 {[%clk 0:00:55]}
26... Ra6 {[%clk 0:00:02.1]} 27. c5 {[%clk 0:00:44.9]} 27... Ra8 {[%clk
0:00:01.3]} 28. Be2 {[%clk 0:00:44]} 1-0

[Event "Early-Titled-Tuesday-Blitz-October-10-2023"]
[Site "Chess.com"]
[Date "2023.10.10"]
[Round "3"]
[White "GiorgianBarbosa"]
[Black "Alphafischer2019"]
[Result "0-1"]
[WhiteElo "2410"]
[BlackElo "2595"]
[TimeControl "180+1"]
[EndTime "8:27:23 PDT"]
[Termination "Alphafischer2019 won by checkmate"]

1. c4 {[%clk 0:03:00.3]} 1... Nf6 {[%clk 0:02:58.2]} 2. g3 {[%clk 0:03:01.2]}
2... e5 {[%clk 0:02:53.9]} 3. Bg2 {[%clk 0:02:59.1]} 3... d6 {[%clk 0:02:54.6]}
4. Nc3 {[%clk 0:02:53.1]} 4... g6 {[%clk 0:02:54]} 5. e4 {[%clk 0:02:53.5]} 5...
Bg7 {[%clk 0:02:53.8]} 6. d3 {[%clk 0:02:54.4]} 6... O-O {[%clk 0:02:54.4]} 7.
Nge2 {[%clk 0:02:55]} 7... Nc6 {[%clk 0:02:50]} 8. O-O {[%clk 0:02:54.3]} 8...
a5 {[%clk 0:02:50.3]} 9. h3 {[%clk 0:02:42.5]} 9... Nh5 {[%clk 0:02:49.7]} 10.
g4 {[%clk 0:02:33.8]} 10... Nf6 {[%clk 0:02:48.3]} 11. f4 {[%clk 0:02:34.1]}
11... exf4 {[%clk 0:02:47.1]} 12. Bxf4 {[%clk 0:02:34.9]} 12... Nd7 {[%clk
0:02:45.9]} 13. Qd2 {[%clk 0:02:32.6]} 13... Nde5 {[%clk 0:02:33.8]} 14. Nd5
{[%clk 0:02:27.1]} 14... Be6 {[%clk 0:02:26.8]} 15. Bg5 {[%clk 0:02:05]} 15...
f6 {[%clk 0:02:25.4]} 16. Be3 {[%clk 0:01:51.4]} 16... b6 {[%clk 0:02:11.1]} 17.
b3 {[%clk 0:01:48.5]} 17... Bxd5 {[%clk 0:02:07.5]} 18. cxd5 {[%clk 0:01:44]}
18... Ne7 {[%clk 0:02:04.7]} 19. Nd4 {[%clk 0:01:36.2]} 19... Qd7 {[%clk
0:01:50]} 20. Ne6 {[%clk 0:01:36.2]} 20... Nf7 {[%clk 0:01:28.8]} 21. Rac1
{[%clk 0:01:15.6]} 21... Rac8 {[%clk 0:01:26.3]} 22. d4 {[%clk 0:01:09]} 22...
Bh8 {[%clk 0:01:25]} 23. Nxf8 {[%clk 0:01:04]} 23... Rxf8 {[%clk 0:01:24.8]} 24.
Rc3 {[%clk 0:00:54.6]} 24... f5 {[%clk 0:01:03.8]} 25. gxf5 {[%clk 0:00:50.2]}
25... gxf5 {[%clk 0:01:04.7]} 26. Bh6 {[%clk 0:00:41]} 26... Nxh6 {[%clk
0:01:02]} 27. Qxh6 {[%clk 0:00:41.9]} 27... Bxd4+ {[%clk 0:01:02]} 28. Re3
{[%clk 0:00:37.3]} 28... f4 {[%clk 0:01:02]} 29. Kh1 {[%clk 0:00:17.5]} 29...
Bxe3 {[%clk 0:01:00.5]} 30. Qg5+ {[%clk 0:00:11.7]} 30... Ng6 {[%clk 0:01:00.6]}
31. e5 {[%clk 0:00:08.7]} 31... dxe5 {[%clk 0:00:46.9]} 32. Be4 {[%clk
0:00:08.4]} 32... Qxh3# {[%clk 0:00:46.4]} 0-1

[Event "Early-Titled-Tuesday-Blitz-October-10-2023"]
[Site "Chess.com"]
[Date "2023.10.10"]
[Round "3"]
[White "JSlaby"]
[Black "KatakuriDono"]
[Result "1-0"]
[WhiteElo "2576"]
[BlackElo "2339"]
[TimeControl "180+1"]
[EndTime "8:27:25 PDT"]
[Termination "JSlaby won by resignation"]

1. Nf3 {[%clk 0:03:00.9]} 1... d5 {[%clk 0:02:59.1]} 2. c4 {[%clk 0:02:59.8]}
2... e6 {[%clk 0:02:57]} 3. d4 {[%clk 0:02:59.1]} 3... Nf6 {[%clk 0:02:56.8]} 4.
Nc3 {[%clk 0:02:57]} 4... dxc4 {[%clk 0:02:53.7]} 5. g4 {[%clk 0:02:54.2]} 5...
Nxg4 {[%clk 0:02:49]} 6. e4 {[%clk 0:02:46.4]} 6... a6 {[%clk 0:02:42.9]} 7.
Bxc4 {[%clk 0:02:44.8]} 7... b5 {[%clk 0:02:42.8]} 8. Bd3 {[%clk 0:02:35.7]}
8... Bb7 {[%clk 0:02:41.4]} 9. Rg1 {[%clk 0:02:34.1]} 9... Nf6 {[%clk
0:02:36.6]} 10. Bg5 {[%clk 0:02:33.7]} 10... Be7 {[%clk 0:02:35.9]} 11. Bxf6
{[%clk 0:02:27.5]} 11... gxf6 {[%clk 0:02:25.2]} 12. Qb3 {[%clk 0:02:21.2]}
12... c5 {[%clk 0:02:18.3]} 13. O-O-O {[%clk 0:02:11.6]} 13... c4 {[%clk
0:02:18.2]} 14. Bxc4 {[%clk 0:02:10.3]} 14... bxc4 {[%clk 0:02:18.5]} 15. Qxb7
{[%clk 0:02:09.7]} 15... Nd7 {[%clk 0:02:08.1]} 16. d5 {[%clk 0:02:08.9]} 16...
Nc5 {[%clk 0:01:48.3]} 17. Qc6+ {[%clk 0:02:02.3]} 17... Kf8 {[%clk 0:01:48.4]}
18. dxe6 {[%clk 0:02:00.4]} 18... Nd3+ {[%clk 0:01:46.1]} 19. Rxd3 {[%clk
0:01:54.5]} 19... cxd3 {[%clk 0:01:38.3]} 20. exf7 {[%clk 0:01:54.6]} 20... Rc8
{[%clk 0:01:35.2]} 21. Qxa6 {[%clk 0:01:45.2]} 21... Qc7 {[%clk 0:01:24.1]} 22.
Nd4 {[%clk 0:01:39.1]} 22... Qd7 {[%clk 0:01:07]} 23. Kd2 {[%clk 0:01:19.9]}
23... Kxf7 {[%clk 0:00:58.5]} 24. Qxd3 {[%clk 0:01:17]} 24... Rhd8 {[%clk
0:00:56.3]} 25. Nd5 {[%clk 0:01:16.9]} 25... Bb4+ {[%clk 0:00:47.9]} 26. Ke2
{[%clk 0:01:16.7]} 26... Bc5 {[%clk 0:00:43.9]} 27. Nf5 {[%clk 0:01:16.2]} 27...
Bf8 {[%clk 0:00:40.7]} 28. Qb3 {[%clk 0:01:13.2]} 28... Qe6 {[%clk 0:00:37.4]}
29. f3 {[%clk 0:01:09.6]} 29... Rb8 {[%clk 0:00:37.4]} 30. Qc2 {[%clk
0:00:55.1]} 30... Rxd5 {[%clk 0:00:32.5]} 31. Qc7+ {[%clk 0:00:51.1]} 31... Rd7
{[%clk 0:00:32.8]} 32. Qxb8 {[%clk 0:00:49.7]} 32... Qxa2 {[%clk 0:00:31.5]} 33.
Rc1 {[%clk 0:00:32.4]} 33... Qa6+ {[%clk 0:00:30]} 34. Ke1 {[%clk 0:00:31.3]}
34... Bb4+ {[%clk 0:00:28.6]} 35. Qxb4 {[%clk 0:00:30.2]} 1-0

[Event "Early-Titled-Tuesday-Blitz-October-10-2023"]
[Site "Chess.com"]
[Date "2023.10.10"]
[Round "3"]
[White "AlexPapasimakopoulos"]
[Black "GMBenjaminBok"]
[Result "0-1"]
[WhiteElo "2710"]
[BlackElo "3016"]
[TimeControl "180+1"]
[EndTime "8:27:26 PDT"]
[Termination "GMBenjaminBok won by resignation"]

1. d4 {[%clk 0:03:00.9]} 1... Nf6 {[%clk 0:02:59.8]} 2. c4 {[%clk 0:03:01.4]}
2... e6 {[%clk 0:03:00.3]} 3. Nc3 {[%clk 0:03:01.6]} 3... Bb4 {[%clk 0:03:00.3]}
4. Qc2 {[%clk 0:03:01.9]} 4... d5 {[%clk 0:02:59.9]} 5. cxd5 {[%clk 0:03:00.4]}
5... exd5 {[%clk 0:03:00.8]} 6. Bg5 {[%clk 0:02:58.4]} 6... h6 {[%clk
0:03:00.8]} 7. Bxf6 {[%clk 0:02:57.7]} 7... Qxf6 {[%clk 0:03:01.7]} 8. e3 {[%clk
0:02:57.7]} 8... O-O {[%clk 0:02:57.2]} 9. Qb3 {[%clk 0:02:58]} 9... Bxc3+
{[%clk 0:02:28.1]} 10. Qxc3 {[%clk 0:02:57.8]} 10... c6 {[%clk 0:02:27]} 11. Nf3
{[%clk 0:02:57.5]} 11... Bf5 {[%clk 0:02:23.9]} 12. Be2 {[%clk 0:02:55.9]} 12...
Nd7 {[%clk 0:02:23.6]} 13. O-O {[%clk 0:02:56.1]} 13... a5 {[%clk 0:02:24.1]}
14. a3 {[%clk 0:02:53.9]} 14... Rfe8 {[%clk 0:02:19.2]} 15. b4 {[%clk
0:02:53.5]} 15... axb4 {[%clk 0:02:12.4]} 16. axb4 {[%clk 0:02:54.4]} 16... Bg4
{[%clk 0:02:11.4]} 17. h3 {[%clk 0:02:49.8]} 17... Bh5 {[%clk 0:01:56.7]} 18.
Rfc1 {[%clk 0:02:49.4]} 18... Rec8 {[%clk 0:01:45.6]} 19. Rxa8 {[%clk
0:02:44.6]} 19... Rxa8 {[%clk 0:01:46.5]} 20. Ra1 {[%clk 0:02:44.9]} 20... Qd8
{[%clk 0:01:25.5]} 21. Ra3 {[%clk 0:02:41.2]} 21... Nf6 {[%clk 0:01:14.1]} 22.
Qa1 {[%clk 0:02:39.4]} 22... Rxa3 {[%clk 0:01:10.6]} 23. Qxa3 {[%clk 0:02:38.9]}
23... Ne4 {[%clk 0:01:11.5]} 24. Qa7 {[%clk 0:02:26.7]} 24... Qe7 {[%clk
0:01:07.6]} 25. Qb6 {[%clk 0:02:25.4]} 25... Nc3 {[%clk 0:00:57.7]} 26. Kf1
{[%clk 0:02:18.9]} 26... Qe4 {[%clk 0:00:40]} 27. Qd8+ {[%clk 0:01:58.5]} 27...
Kh7 {[%clk 0:00:39.1]} 28. g4 {[%clk 0:01:45.9]} 28... Qc2 {[%clk 0:00:38]} 29.
gxh5 {[%clk 0:01:35.5]} 29... Qxe2+ {[%clk 0:00:37.5]} 30. Kg2 {[%clk 0:01:36]}
30... Nd1 {[%clk 0:00:37.8]} 31. Qh4 {[%clk 0:01:34.3]} 31... Nxe3+ {[%clk
0:00:37.8]} 32. Kh2 {[%clk 0:01:28.6]} 32... Qxf3 {[%clk 0:00:37.1]} 33. fxe3
{[%clk 0:01:28.9]} 33... Qe2+ {[%clk 0:00:36.6]} 34. Kh1 {[%clk 0:01:28.2]}
34... Qxe3 {[%clk 0:00:36]} 35. Qd8 {[%clk 0:01:20.6]} 35... Qxh3+ {[%clk
0:00:34.5]} 36. Kg1 {[%clk 0:01:20.5]} 36... Qg4+ {[%clk 0:00:34.6]} 37. Kf1
{[%clk 0:01:20.1]} 37... Qxh5 {[%clk 0:00:29.3]} 38. Qe7 {[%clk 0:01:18.4]}
38... b5 {[%clk 0:00:23]} 39. Qc7 {[%clk 0:01:13.4]} 39... Qd1+ {[%clk
0:00:20.6]} 40. Kg2 {[%clk 0:01:13.3]} 40... Qxd4 {[%clk 0:00:18.8]} 41. Qxc6
{[%clk 0:01:10.2]} 41... Qxb4 {[%clk 0:00:17.6]} 42. Qxd5 {[%clk 0:01:10.4]}
42... Qg4+ {[%clk 0:00:16.8]} 43. Kf2 {[%clk 0:01:08.7]} 43... Qf4+ {[%clk
0:00:16.7]} 44. Kg2 {[%clk 0:01:07.4]} 44... b4 {[%clk 0:00:17.1]} 45. Qd3+
{[%clk 0:01:07.8]} 45... g6 {[%clk 0:00:17.1]} 46. Qd5 {[%clk 0:01:07.2]} 46...
h5 {[%clk 0:00:15.2]} 47. Kh3 {[%clk 0:01:06.5]} 47... Qf5+ {[%clk 0:00:14.9]}
48. Kh4 {[%clk 0:01:05]} 48... Qxd5 {[%clk 0:00:13.7]} 0-1

[Event "Early-Titled-Tuesday-Blitz-October-10-2023"]
[Site "Chess.com"]
[Date "2023.10.10"]
[Round "3"]
[White "Shuvalov"]
[Black "karinachess1"]
[Result "1-0"]
[WhiteElo "2478"]
[BlackElo "2626"]
[TimeControl "180+1"]
[EndTime "8:27:27 PDT"]
[Termination "Shuvalov won by checkmate"]

1. d4 {[%clk 0:01:30.1]} 1... Nf6 {[%clk 0:02:58.8]} 2. c4 {[%clk 0:01:30.2]}
2... e6 {[%clk 0:02:58.5]} 3. Nc3 {[%clk 0:01:30.1]} 3... d5 {[%clk 0:02:58.5]}
4. Nf3 {[%clk 0:01:29.6]} 4... Be7 {[%clk 0:02:56.9]} 5. Bf4 {[%clk 0:01:29.3]}
5... O-O {[%clk 0:02:56.4]} 6. e3 {[%clk 0:01:29.5]} 6... b6 {[%clk 0:02:56.8]}
7. cxd5 {[%clk 0:01:26.8]} 7... Nxd5 {[%clk 0:02:57.7]} 8. Nxd5 {[%clk
0:01:26.6]} 8... Qxd5 {[%clk 0:02:58.6]} 9. a3 {[%clk 0:01:26.3]} 9... Ba6
{[%clk 0:02:41.3]} 10. Bxa6 {[%clk 0:01:24.8]} 10... Nxa6 {[%clk 0:02:42.2]} 11.
O-O {[%clk 0:01:22.8]} 11... c5 {[%clk 0:02:35.4]} 12. Qa4 {[%clk 0:01:21.1]}
12... Qb7 {[%clk 0:02:32.5]} 13. Rfd1 {[%clk 0:01:18]} 13... b5 {[%clk
0:02:13.5]} 14. Qa5 {[%clk 0:01:12.7]} 14... c4 {[%clk 0:02:10.5]} 15. e4 {[%clk
0:00:57.5]} 15... Rfd8 {[%clk 0:01:48.5]} 16. d5 {[%clk 0:00:56.2]} 16... exd5
{[%clk 0:01:46.1]} 17. exd5 {[%clk 0:00:57.1]} 17... Nc5 {[%clk 0:01:46.3]} 18.
d6 {[%clk 0:00:55.6]} 18... Bf6 {[%clk 0:01:38.5]} 19. Qc7 {[%clk 0:00:47.9]}
19... Rd7 {[%clk 0:00:54.4]} 20. Qxc5 {[%clk 0:00:45.8]} 20... Bxb2 {[%clk
0:00:42.9]} 21. Rab1 {[%clk 0:00:45.2]} 21... c3 {[%clk 0:00:43.3]} 22. Ne5
{[%clk 0:00:30.1]} 22... Rdd8 {[%clk 0:00:36]} 23. d7 {[%clk 0:00:24.5]} 23...
f6 {[%clk 0:00:36]} 24. Qc6 {[%clk 0:00:11.2]} 24... Rab8 {[%clk 0:00:29.9]} 25.
Qe6+ {[%clk 0:00:08.3]} 25... Kh8 {[%clk 0:00:27]} 26. Nf7+ {[%clk 0:00:08.6]}
26... Kg8 {[%clk 0:00:27.4]} 27. Nh6+ {[%clk 0:00:08.8]} 27... Kh8 {[%clk
0:00:27.5]} 28. Qg8+ {[%clk 0:00:08.9]} 28... Rxg8 {[%clk 0:00:26.6]} 29. Nf7#
{[%clk 0:00:09.6]} 1-0

[Event "Early-Titled-Tuesday-Blitz-October-10-2023"]
[Site "Chess.com"]
[Date "2023.10.10"]
[Round "3"]
[White "Ural_bogatyr"]
[Black "Zhani-Z"]
[Result "1-0"]
[WhiteElo "2532"]
[BlackElo "2200"]
[TimeControl "180+1"]
[EndTime "8:27:28 PDT"]
[Termination "Ural_bogatyr won by checkmate"]

1. d4 {[%clk 0:03:00.9]} 1... Nf6 {[%clk 0:02:57.3]} 2. Nc3 {[%clk 0:02:50]}
2... d5 {[%clk 0:02:48.4]} 3. Bf4 {[%clk 0:02:47.2]} 3... a6 {[%clk 0:02:39.7]}
4. e3 {[%clk 0:02:44.2]} 4... h6 {[%clk 0:02:36.5]} 5. Nf3 {[%clk 0:02:39.7]}
5... e6 {[%clk 0:02:30.2]} 6. Ne5 {[%clk 0:02:39.2]} 6... c5 {[%clk 0:02:17.6]}
7. g4 {[%clk 0:02:29.6]} 7... Nc6 {[%clk 0:02:09.9]} 8. Bg2 {[%clk 0:02:23.2]}
8... cxd4 {[%clk 0:02:01.5]} 9. exd4 {[%clk 0:02:24.1]} 9... Bb4 {[%clk
0:01:51.5]} 10. h4 {[%clk 0:02:14.2]} 10... Qa5 {[%clk 0:01:38.7]} 11. Nxc6
{[%clk 0:01:44.8]} 11... Bxc3+ {[%clk 0:01:31.7]} 12. bxc3 {[%clk 0:01:34.6]}
12... Qxc3+ {[%clk 0:01:26.4]} 13. Bd2 {[%clk 0:01:32.9]} 13... Qxc6 {[%clk
0:01:26.5]} 14. g5 {[%clk 0:01:25.7]} 14... hxg5 {[%clk 0:01:20.6]} 15. hxg5
{[%clk 0:01:26]} 15... Rxh1+ {[%clk 0:01:08.7]} 16. Bxh1 {[%clk 0:01:26.9]}
16... Ne4 {[%clk 0:01:01.4]} 17. Bxe4 {[%clk 0:01:25.9]} 17... dxe4 {[%clk
0:01:02.3]} 18. Qh5 {[%clk 0:01:22.9]} 18... Qd6 {[%clk 0:00:50.6]} 19. g6
{[%clk 0:01:02.2]} 19... Qe7 {[%clk 0:00:26.9]} 20. Rb1 {[%clk 0:00:35.7]} 20...
Bd7 {[%clk 0:00:17.7]} 21. Bb4 {[%clk 0:00:27.4]} 21... fxg6 {[%clk 0:00:09.7]}
22. Qh8+ {[%clk 0:00:27.2]} 22... Kf7 {[%clk 0:00:10]} 23. Qxa8 {[%clk
0:00:27.4]} 23... Qh4 {[%clk 0:00:10.1]} 24. Qf8# {[%clk 0:00:23]} 1-0

[Event "Early-Titled-Tuesday-Blitz-October-10-2023"]
[Site "Chess.com"]
[Date "2023.10.10"]
[Round "3"]
[White "vishwa_vijeta"]
[Black "Iball95"]
[Result "0-1"]
[WhiteElo "2552"]
[BlackElo "2781"]
[TimeControl "180+1"]
[EndTime "8:27:30 PDT"]
[Termination "Iball95 won by resignation"]

1. e4 {[%clk 0:02:55.7]} 1... c5 {[%clk 0:03:00]} 2. Nf3 {[%clk 0:02:53.5]} 2...
e6 {[%clk 0:03:00.8]} 3. d4 {[%clk 0:02:53]} 3... cxd4 {[%clk 0:03:01.7]} 4.
Nxd4 {[%clk 0:02:53.9]} 4... Nf6 {[%clk 0:03:01.7]} 5. Nc3 {[%clk 0:02:54]} 5...
Nc6 {[%clk 0:03:02.1]} 6. Ndb5 {[%clk 0:02:54]} 6... Bc5 {[%clk 0:03:02.4]} 7.
Bf4 {[%clk 0:02:40.8]} 7... O-O {[%clk 0:03:02]} 8. Bc7 {[%clk 0:02:39.7]} 8...
Qe7 {[%clk 0:03:02.5]} 9. Bd6 {[%clk 0:02:38.9]} 9... Bxd6 {[%clk 0:03:02.9]}
10. Qxd6 {[%clk 0:02:39.4]} 10... Qd8 {[%clk 0:03:03.6]} 11. Nc7 {[%clk
0:02:38.1]} 11... Rb8 {[%clk 0:03:03.4]} 12. e5 {[%clk 0:02:34.7]} 12... Ne8
{[%clk 0:03:03.4]} 13. Nxe8 {[%clk 0:02:34.5]} 13... Rxe8 {[%clk 0:03:04.3]} 14.
f4 {[%clk 0:02:29.4]} 14... b5 {[%clk 0:02:55]} 15. Be2 {[%clk 0:02:28.2]} 15...
b4 {[%clk 0:02:50.8]} 16. Ne4 {[%clk 0:02:27.7]} 16... Rb6 {[%clk 0:02:51.7]}
17. Qc5 {[%clk 0:02:26.7]} 17... Ne7 {[%clk 0:02:51.5]} 18. Nd6 {[%clk
0:02:22.7]} 18... Rf8 {[%clk 0:02:50.7]} 19. Bf3 {[%clk 0:02:19.7]} 19... Ba6
{[%clk 0:02:40.6]} 20. O-O-O {[%clk 0:02:12.9]} 20... Qb8 {[%clk 0:02:28.6]} 21.
Kb1 {[%clk 0:01:58.5]} 21... Nc8 {[%clk 0:01:57.9]} 22. Ne4 {[%clk 0:01:33.4]}
22... Bb5 {[%clk 0:01:56.2]} 23. g3 {[%clk 0:01:22.6]} 23... Bc6 {[%clk
0:01:44.6]} 24. Rhe1 {[%clk 0:01:18.9]} 24... Rb5 {[%clk 0:01:43.4]} 25. Qe3
{[%clk 0:01:12.7]} 25... Ne7 {[%clk 0:01:42.7]} 26. Nd6 {[%clk 0:01:12.1]} 26...
Bxf3 {[%clk 0:01:37]} 27. Qxf3 {[%clk 0:01:09.7]} 27... Rd5 {[%clk 0:01:37.6]}
28. Rxd5 {[%clk 0:01:05]} 28... Nxd5 {[%clk 0:01:38.5]} 29. Ka1 {[%clk
0:01:00.7]} 29... f6 {[%clk 0:01:37.5]} 30. exf6 {[%clk 0:00:58]} 30... Qxd6
{[%clk 0:01:36.7]} 31. fxg7 {[%clk 0:00:57]} 31... Kxg7 {[%clk 0:01:37.6]} 32.
Qd3 {[%clk 0:00:53.9]} 32... Qc5 {[%clk 0:01:35]} 33. Qe4 {[%clk 0:00:38.7]}
33... Nf6 {[%clk 0:01:26.4]} 34. Qd3 {[%clk 0:00:38.5]} 34... Rc8 {[%clk
0:01:27.3]} 35. Kb1 {[%clk 0:00:37.1]} 35... a5 {[%clk 0:01:24.1]} 36. Qe2
{[%clk 0:00:24.4]} 36... Qc4 {[%clk 0:01:21.1]} 37. Qd2 {[%clk 0:00:22.7]} 37...
Qd5 {[%clk 0:01:15.5]} 38. Qc1 {[%clk 0:00:20.8]} 38... a4 {[%clk 0:01:15.3]}
39. Re5 {[%clk 0:00:20.8]} 39... Qd4 {[%clk 0:01:11.8]} 40. b3 {[%clk
0:00:21.7]} 40... a3 {[%clk 0:01:10]} 41. Rh5 {[%clk 0:00:20.7]} 41... Nxh5
{[%clk 0:01:09.4]} 42. f5 {[%clk 0:00:21.6]} 0-1

[Event "Early-Titled-Tuesday-Blitz-October-10-2023"]
[Site "Chess.com"]
[Date "2023.10.10"]
[Round "3"]
[White "GMZaven"]
[Black "valemava"]
[Result "1-0"]
[WhiteElo "2658"]
[BlackElo "2274"]
[TimeControl "180+1"]
[EndTime "8:27:30 PDT"]
[Termination "GMZaven won by resignation"]

1. e4 {[%clk 0:02:54.4]} 1... c5 {[%clk 0:02:58.4]} 2. Nc3 {[%clk 0:02:53.3]}
2... Qa5 {[%clk 0:02:57.4]} 3. Nf3 {[%clk 0:02:51.7]} 3... a6 {[%clk 0:02:57.7]}
4. d4 {[%clk 0:02:51.6]} 4... b5 {[%clk 0:02:57.9]} 5. dxc5 {[%clk 0:02:51]}
5... e6 {[%clk 0:02:57.6]} 6. Be3 {[%clk 0:02:49.6]} 6... b4 {[%clk 0:02:57.6]}
7. Ne2 {[%clk 0:02:49]} 7... Bxc5 {[%clk 0:02:57.5]} 8. Ned4 {[%clk 0:02:48.9]}
8... Qb6 {[%clk 0:02:57.1]} 9. Bd3 {[%clk 0:02:46]} 9... Bb7 {[%clk 0:02:56.6]}
10. O-O {[%clk 0:02:45.4]} 10... Nc6 {[%clk 0:02:56.8]} 11. c3 {[%clk
0:02:44.9]} 11... Nge7 {[%clk 0:02:50.7]} 12. a3 {[%clk 0:02:43.5]} 12... bxa3
{[%clk 0:02:44.8]} 13. b4 {[%clk 0:02:42.7]} 13... Bxd4 {[%clk 0:02:39.5]} 14.
Nxd4 {[%clk 0:02:43.1]} 14... Qc7 {[%clk 0:02:30]} 15. Rxa3 {[%clk 0:02:41.7]}
15... O-O {[%clk 0:02:25.2]} 16. Qh5 {[%clk 0:02:39.5]} 16... Ne5 {[%clk
0:02:20.6]} 17. Bb1 {[%clk 0:02:37.1]} 17... Nc4 {[%clk 0:01:49.2]} 18. Ra2
{[%clk 0:02:29.5]} 18... Nxe3 {[%clk 0:01:48.1]} 19. fxe3 {[%clk 0:02:30.4]}
19... Ng6 {[%clk 0:01:41.4]} 20. Ne2 {[%clk 0:02:27.2]} 20... Qe5 {[%clk
0:01:38.2]} 21. Qf3 {[%clk 0:02:25.6]} 21... f5 {[%clk 0:01:35.7]} 22. Qg3
{[%clk 0:02:25.7]} 22... Qxg3 {[%clk 0:01:32.5]} 23. Nxg3 {[%clk 0:02:26.6]}
23... f4 {[%clk 0:01:30.8]} 24. exf4 {[%clk 0:02:25.8]} 24... Nxf4 {[%clk
0:01:31.7]} 25. Rd2 {[%clk 0:02:25]} 25... Bc6 {[%clk 0:01:30.7]} 26. h3 {[%clk
0:02:14.6]} 26... a5 {[%clk 0:01:20.5]} 27. bxa5 {[%clk 0:02:13]} 27... Rxa5
{[%clk 0:01:21.4]} 28. Rdf2 {[%clk 0:02:12.6]} 28... Ng6 {[%clk 0:01:15.9]} 29.
Rxf8+ {[%clk 0:02:11.4]} 29... Nxf8 {[%clk 0:01:16.8]} 30. Bd3 {[%clk
0:02:07.8]} 30... Ra3 {[%clk 0:01:15.3]} 31. Ne2 {[%clk 0:02:06.3]} 31... Ng6
{[%clk 0:01:15.1]} 32. Bb1 {[%clk 0:01:51.3]} 32... Ne5 {[%clk 0:01:12.5]} 33.
Rc1 {[%clk 0:01:47.9]} 33... Bb5 {[%clk 0:01:10.1]} 34. Nd4 {[%clk 0:01:48.2]}
34... Bc4 {[%clk 0:01:05.3]} 35. Kf2 {[%clk 0:01:47]} 35... Ra8 {[%clk
0:01:02.2]} 36. Ke3 {[%clk 0:01:47.1]} 36... Rb8 {[%clk 0:01:01.6]} 37. Bc2
{[%clk 0:01:46.9]} 37... Rc8 {[%clk 0:00:57]} 38. Ra1 {[%clk 0:01:46.5]} 38...
Rc7 {[%clk 0:00:48.4]} 39. Nf3 {[%clk 0:01:43.5]} 39... Nxf3 {[%clk 0:00:46.3]}
40. gxf3 {[%clk 0:01:44.4]} 40... e5 {[%clk 0:00:46]} 41. h4 {[%clk 0:01:44.2]}
41... Be6 {[%clk 0:00:45.6]} 42. Kd2 {[%clk 0:01:43.8]} 42... Kf7 {[%clk
0:00:45.7]} 43. Ra6 {[%clk 0:01:43.6]} 43... Kg6 {[%clk 0:00:44.2]} 44. Bb3
{[%clk 0:01:43]} 44... Kh5 {[%clk 0:00:44]} 45. Bxe6 {[%clk 0:01:42.9]} 45...
dxe6 {[%clk 0:00:44.1]} 46. Rxe6 {[%clk 0:01:43.8]} 46... Rc5 {[%clk 0:00:43.6]}
47. Re7 {[%clk 0:01:43.9]} 47... Kh6 {[%clk 0:00:42.1]} 48. h5 {[%clk
0:01:43.6]} 48... g6 {[%clk 0:00:38.2]} 49. hxg6 {[%clk 0:01:43.3]} 49... Kxg6
{[%clk 0:00:39.1]} 50. Kd3 {[%clk 0:01:43.6]} 50... h5 {[%clk 0:00:38.4]} 51. c4
{[%clk 0:01:43.6]} 51... h4 {[%clk 0:00:38.2]} 52. Re8 {[%clk 0:01:43.7]} 52...
Kg5 {[%clk 0:00:37.9]} 53. Rg8+ {[%clk 0:01:42.7]} 53... Kf4 {[%clk 0:00:37.2]}
54. Rg4+ {[%clk 0:01:42.6]} 54... Kxf3 {[%clk 0:00:37.4]} 55. Rxh4 {[%clk
0:01:43.5]} 55... Rc8 {[%clk 0:00:34.9]} 56. Kc3 {[%clk 0:01:42.3]} 56... Ke3
{[%clk 0:00:34]} 57. Rg4 {[%clk 0:01:39.1]} 57... Ra8 {[%clk 0:00:32.6]} 58. c5
{[%clk 0:01:39]} 58... Ra1 {[%clk 0:00:30]} 59. Kc4 {[%clk 0:01:39]} 59... Rc1+
{[%clk 0:00:29.3]} 60. Kd5 {[%clk 0:01:39.1]} 60... Kf3 {[%clk 0:00:29.2]} 61.
Rh4 {[%clk 0:01:38.9]} 61... Kg3 {[%clk 0:00:26.5]} 62. Rh5 {[%clk 0:01:35.6]}
62... Kf4 {[%clk 0:00:23.4]} 63. Rf5+ {[%clk 0:01:35.5]} 63... Ke3 {[%clk
0:00:23.4]} 64. Rxe5 {[%clk 0:01:36.4]} 64... Rd1+ {[%clk 0:00:22]} 65. Ke6
{[%clk 0:01:36.8]} 65... Kd4 {[%clk 0:00:22]} 66. Rd5+ {[%clk 0:01:36.8]} 66...
Kxe4 {[%clk 0:00:22.4]} 67. Rxd1 {[%clk 0:01:37.7]} 1-0